bitfinex-derivatives/quotes_SOLF0:USTF0_20250516
["timestamp","ask_amount","ask_price","bid_price","bid_amount"]
[1747353998581,67.74,169.03,168.91,71.573]
[1747354000374,67.78,169.04,168.91,71.573]
[1747354000575,1.98,169.11,168.92,67.5]
[1747354000775,69.3635,169.08,168.92,69.4778]
[1747354000975,5.914,169.06,168.92,69.4778]
[1747354001181,69.3635,169.08,168.92,69.4778]
[1747354002281,5.9148,169.03,168.92,69.4778]
[1747354002779,69.3635,169.08,168.92,69.4778]
[1747354002984,67.44,169.08,168.92,69.4778]
[1747354003875,5.915,169.03,168.92,69.4778]
[1747354004080,67.44,169.08,168.93,135.32]
[1747354004586,5.9157,169.01,168.93,135.32]
[1747354005793,67.46,169.03,168.93,135.32]
[1747354006293,5.9157,169.0,168.95,5.9175]
[1747354006495,5.9157,169.0,168.93,135.32]
[1747354007084,5.9154,169.01,168.96,5.917]
[1747354007393,67.84,169.06,168.93,135.32]
[1747354007590,5.9148,169.03,168.98,5.9162]
[1747354007795,67.28,169.05,168.98,67.84]
[1747354008294,5.9144,169.04,168.99,5.916]
[1747354008500,67.28,169.05,168.98,67.84]
[1747354009395,67.28,169.05,168.98,73.7564]
[1747354009606,67.28,169.05,168.92,1.9778]
[1747354009795,67.28,169.05,168.94,67.84]
[1747354009993,5.9155,169.01,168.96,5.9168]
[1747354010297,67.28,169.05,168.94,67.84]
[1747354010991,67.28,169.05,168.95,5.9172]
[1747354011399,67.28,169.05,168.94,67.84]
[1747354011696,67.28,169.05,168.94,73.7576]
[1747354011897,67.28,169.05,168.94,67.84]
[1747354012097,67.28,169.05,168.92,1.9778]
[1747354012389,5.9172,168.96,168.91,77.5318]
[1747354012590,68.36,168.97,168.91,71.613]
[1747354012989,68.36,168.97,168.91,67.84]
[1747354013191,68.36,168.97,168.85,1.9032]
[1747354013496,68.36,168.97,168.86,67.84]
[1747354015295,68.2,168.97,168.87,3.8022]
[1747354015499,68.22,169.0,168.87,72.0222]
[1747354016401,511.26,169.11,168.99,5.9158]
[1747354016603,69.8139,169.09,168.98,67.86]
[1747354016901,5.9157,169.0,168.98,67.86]
[1747354017197,68.26,169.04,168.98,67.86]
[1747354017400,68.24,169.03,168.96,3.8022]
[1747354017594,68.24,169.03,168.96,72.0422]
[1747354017795,5.9153,169.02,168.97,5.9167]
[1747354017996,5.9153,169.02,168.96,72.0422]
[1747354018296,74.1547,169.03,168.98,5.9162]
[1747354018496,69.8139,169.09,168.96,72.0422]
[1747354018800,68.16,169.08,168.99,5.9159]
[1747354019195,5.9151,169.02,168.96,72.0422]
[1747354019391,68.12,169.05,168.96,72.0422]
[1747354019905,5.9153,169.02,168.98,5.9162]
[1747354020097,68.12,169.05,168.96,72.0422]
[1747354020699,69.8139,169.09,168.96,72.0422]
[1747354021001,68.1,169.05,168.96,72.0422]
[1747354021203,69.8139,169.09,168.96,72.0422]
[1747354021400,68.06,169.08,168.96,72.0422]
[1747354021600,68.06,169.08,169.01,5.9152]
[1747354021904,68.06,169.08,168.96,72.0422]
[1747354022100,69.8139,169.09,168.96,72.0422]
[1747354022299,68.02,169.09,168.96,72.0422]
[1747354022700,68.02,169.09,168.96,3.8022]
[1747354022904,68.02,169.09,168.97,136.26]
[1747354023803,5.9143,169.04,168.97,136.26]
[1747354024001,68.02,169.09,168.97,136.26]
[1747354024002,68.02,169.09,168.98,68.24]
[1747354025106,68.24,169.13,168.98,68.24]
[1747354025312,67.86,169.1,168.98,68.24]
[1747354025501,68.24,169.13,168.98,68.24]
[1747354025702,67.86,169.12,168.98,68.24]
[1747354025902,136.08,169.13,168.98,68.24]
[1747354026103,67.82,169.15,168.98,68.24]
[1747354026806,5.9102,169.16,169.11,5.9116]
[1747354027014,136.0,169.17,169.1,68.22]
[1747354027307,136.0,169.17,169.06,68.22]
[1747354027909,1.9389,169.16,169.06,68.22]
[1747354028309,3.8886,169.15,169.06,68.22]
[1747354028813,1.9389,169.16,169.06,68.22]
[1747354029009,135.96,169.17,169.07,71.5535]
[1747354029406,67.74,169.17,169.07,71.5535]
[1747354030012,68.22,169.16,169.07,3.8135]
[1747354030211,1.8947,169.22,169.07,3.8135]
[1747354030415,135.9,169.21,169.07,3.8135]
[1747354030608,68.22,169.21,169.08,67.7]
[1747354030913,67.7,169.2,169.08,67.7]
[1747354031618,5.9111,169.14,169.08,73.6127]
[1747354031818,67.74,169.15,169.08,67.7]
[1747354032015,67.74,169.15,169.13,5.9111]
[1747354032226,67.7,169.19,169.11,68.2]
[1747354032626,5.9108,169.15,169.11,68.2]
[1747354032815,67.7,169.19,169.11,68.2]
[1747354033524,5.9099,169.17,169.11,68.2]
[1747354033827,5.9094,169.19,169.11,68.2]
[1747354034028,68.22,169.21,169.11,68.2]
[1747354034322,67.8,169.2,169.11,68.2]
[1747354034725,68.22,169.21,169.11,68.2]
[1747354034925,67.8,169.2,169.15,5.9105]
[1747354035128,67.82,169.2,169.15,5.9105]
[1747354035629,67.82,169.2,169.11,68.2]
[1747354035826,67.74,169.24,169.11,68.2]
[1747354036032,67.74,169.24,169.12,1.8738]
[1747354036331,67.8,169.29,169.13,578.76]
[1747354036723,5.9074,169.24,169.18,5.9091]
[1747354036933,67.8,169.29,169.18,68.2]
[1747354037229,5.9083,169.22,169.18,68.2]
[1747354037632,67.82,169.24,169.18,68.2]
[1747354038628,5.9299,169.31,169.18,68.2]
[1747354038838,74.1099,169.31,169.18,68.2]
[1747354039130,5.9069,169.26,169.18,68.2]
[1747354039330,67.8,169.3,169.18,68.2]
[1747354040021,67.8,169.3,169.13,510.96]
[1747354040223,67.8,169.3,169.12,70.0538]
[1747354040430,67.8,169.3,169.13,5.9109]
[1747354040633,67.8,169.3,169.12,70.0538]
[1747354040833,67.8,169.3,169.13,5.9112]
[1747354041132,79.611,169.3,169.12,70.0538]
[1747354041333,103.29,169.3,169.12,68.18]
[1747354041632,1.08483596,169.29,169.12,68.18]
[1747354041826,11.8121,169.28,169.12,68.18]
[1747354042022,1.08483596,169.27,169.12,68.18]
[1747354042226,5.9299,169.31,169.12,68.18]
[1747354042428,136.08,169.3,169.12,68.18]
[1747354042934,5.9076,169.24,169.12,68.18]
[1747354043132,67.9,169.25,169.16,5.9101]
[1747354043430,67.9,169.25,169.17,68.18]
[1747354045033,136.06,169.25,169.17,68.18]
[1747354046739,67.9,169.25,169.17,68.18]
[1747354047029,67.64,169.26,169.17,135.84]
[1747354047230,67.64,169.26,169.18,3.8335]
[1747354047831,67.64,169.26,169.17,68.18]
[1747354048032,1.9358,169.25,169.17,68.18]
[1747354048931,5.9077,169.23,169.17,74.0897]
[1747354049129,1.9358,169.25,169.17,68.18]
[1747354049532,5.9089,169.2,169.17,68.18]
[1747354049727,67.76,169.22,169.17,68.18]
[1747354049931,67.76,169.22,169.12,67.64]
[1747354050137,67.76,169.22,169.13,5.911]
[1747354050435,67.76,169.22,169.12,67.64]
[1747354050635,5.9088,169.2,169.12,67.64]
[1747354050836,67.76,169.22,169.12,67.64]
[1747354051038,5.9089,169.2,169.15,5.9102]
[1747354051235,67.76,169.22,169.15,5.9102]
[1747354051436,67.76,169.22,169.12,67.64]
[1747354051629,5.9085,169.21,169.12,67.64]
[1747354052435,1.9268,169.23,169.12,67.64]
[1747354052736,69.4868,169.23,169.12,67.64]
[1747354052938,69.4868,169.23,169.07,510.66]
[1747354053141,69.4868,169.23,169.08,135.14]
[1747354053333,69.4868,169.23,169.11,5.9117]
[1747354053533,1.9374,169.22,169.08,135.14]
[1747354053736,1.9374,169.22,169.08,67.64]
[1747354054038,1.9374,169.22,169.09,5.9126]
[1747354054238,1.9374,169.22,169.08,67.64]
[1747354055238,37.4274,169.22,169.02,67.64]
[1747354055434,5.914,169.05,169.02,67.64]
[1747354055828,67.58,169.07,169.02,67.64]
[1747354056030,67.58,169.07,168.99,510.68]
[1747354056539,5.914,169.06,168.98,67.66]
[1747354057039,67.58,169.07,168.98,67.66]
[1747354057040,67.58,169.07,169.05,5.914]
[1747354057239,67.56,169.12,169.03,67.66]
[1747354059030,67.66,169.15,169.03,67.66]
[1747354059227,67.48,169.14,169.03,67.66]
[1747354059637,69.4519,169.21,169.03,67.66]
[1747354059838,75.3606,169.21,169.03,67.66]
[1747354060230,67.52,169.22,169.04,62.0]
[1747354060433,67.52,169.22,169.05,69.3782]
[1747354060835,5.9066,169.26,169.06,1.9305]
[1747354061035,73.4066,169.26,169.06,1.9305]
[1747354061236,67.48,169.26,169.07,1.9196]
[1747354061435,141.1057,169.29,169.08,67.66]
[1747354061641,135.2,169.29,169.08,67.66]
[1747354061840,5.9066,169.27,169.2,5.9085]
[1747354062136,5.9066,169.27,169.08,67.66]
[1747354062137,135.2,169.29,169.21,67.66]
[1747354062345,5.908,169.23,169.18,67.66]
[1747354062537,1.983,169.28,169.18,67.66]
[1747354062935,5.9083,169.22,169.18,67.66]
[1747354063241,1.983,169.28,169.18,67.66]
[1747354063434,1.983,169.28,169.21,5.9084]
[1747354063435,5.9066,169.27,169.21,5.9084]
[1747354063636,1.983,169.28,169.21,5.9084]
[1747354063832,1.983,169.28,169.19,68.14]
[1747354065042,135.2,169.29,169.19,68.14]
[1747354066251,5.9062,169.28,169.23,5.9077]
[1747354066442,67.64,169.33,169.23,67.64]
[1747354066643,67.86,169.32,169.23,67.64]
[1747354066941,5.905,169.31,169.25,5.9069]
[1747354067344,73.7646,169.32,169.23,67.64]
[1747354067537,2.0396,169.35,169.24,67.82]
[1747354067843,67.64,169.37,169.3,5.9052]
[1747354068053,5.9035,169.36,169.3,73.5452]
[1747354068348,135.42,169.37,169.3,67.64]
[1747354068648,67.78,169.37,169.3,67.64]
[1747354068845,67.64,169.42,169.3,67.64]
[1747354069045,67.76,169.42,169.3,69.5188]
[1747354069750,67.76,169.42,169.34,5.9038]
[1747354070048,67.76,169.42,169.35,67.64]
[1747354070245,5.9031,169.37,169.35,67.64]
[1747354070643,67.76,169.42,169.35,67.64]
[1747354071043,3.8874,169.45,169.35,67.64]
[1747354071244,67.64,169.46,169.35,67.64]
[1747354071444,5.9007,169.43,169.37,5.9028]
[1747354071646,67.68,169.45,169.36,1.9233]
[1747354071845,5.9014,169.42,169.36,7.8261]
[1747354072350,67.58,169.45,169.36,1.9233]
[1747354073251,5.9011,169.42,169.37,5.9025]
[1747354073550,67.64,169.46,169.36,1.9233]
[1747354073745,67.46,169.46,169.36,1.9233]
[1747354073947,1.8746,169.48,169.4,5.9017]
[1747354074149,67.48,169.47,169.41,67.6]
[1747354074351,67.48,169.47,169.42,67.6]
[1747354074551,67.48,169.47,169.43,67.6]
[1747354074949,5.8998,169.46,169.43,67.6]
[1747354075146,67.48,169.47,169.43,67.6]
[1747354076051,67.32,169.51,169.43,67.6]
[1747354076452,67.6,169.54,169.43,67.6]
[1747354076655,67.32,169.53,169.43,67.6]
[1747354076952,67.32,169.53,169.44,67.32]
[1747354077151,5.8983,169.51,169.44,67.32]
[1747354078050,5.8976,169.52,169.46,5.8994]
[1747354078453,5.8976,169.52,169.44,67.32]
[1747354078654,5.8976,169.52,169.46,5.8996]
[1747354078849,5.8976,169.52,169.44,67.32]
[1747354079053,67.16,169.57,169.45,2.0181]
[1747354079252,67.16,169.57,169.46,1.9497]
[1747354079450,5.8963,169.56,169.46,1.9497]
[1747354079651,5.8963,169.56,169.5,5.898]
[1747354079854,5.8963,169.56,169.46,1.9497]
[1747354079855,5.8963,169.56,169.51,67.26]
[1747354080350,512.1685,169.65,169.51,67.26]
[1747354080554,67.26,169.63,169.51,67.26]
[1747354081755,134.3,169.63,169.51,67.26]
[1747354082158,67.04,169.63,169.51,67.26]
[1747354083259,66.92,169.63,169.51,67.26]
[1747354083959,5.8945,169.61,169.55,5.8963]
[1747354084159,1.9885,169.65,169.56,67.24]
[1747354084362,3.8355,169.72,169.57,69.2551]
[1747354084661,5.8917,169.7,169.58,1.9774]
[1747354084854,5.8917,169.7,169.59,66.8]
[1747354085058,5.8907,169.72,169.59,66.8]
[1747354085256,66.78,169.73,169.6,1.9596]
[1747354085560,5.891,169.71,169.65,5.893]
[1747354085757,66.78,169.73,169.66,67.2]
[1747354086362,67.24,169.74,169.66,67.2]
[1747354086661,66.66,169.73,169.66,67.2]
[1747354086961,66.62,169.74,169.66,67.2]
[1747354089865,3.6987,169.77,169.66,67.2]
[1747354090067,66.44,169.74,169.66,67.2]
[1747354090265,5.8924,169.67,169.66,67.2]
[1747354092171,67.18,169.73,169.66,67.2]
[1747354092463,66.38,169.73,169.66,67.2]
[1747354092766,5.8916,169.7,169.66,67.2]
[1747354093569,66.32,169.73,169.66,67.2]
[1747354094063,5.8917,169.7,169.66,67.2]
[1747354094267,66.32,169.73,169.66,67.2]
[1747354094767,5.891,169.71,169.66,67.2]
[1747354094967,70.8787,169.77,169.66,67.2]
[1747354095268,66.22,169.73,169.66,67.2]
[1747354095467,5.8907,169.72,169.67,5.8924]
[1747354095963,66.16,169.75,169.6,1.9596]
[1747354096163,66.16,169.75,169.61,67.16]
[1747354096469,5.8931,169.66,169.61,67.16]
[1747354096662,67.44,169.68,169.61,67.16]
[1747354096968,5.8927,169.67,169.62,5.8938]
[1747354097468,67.44,169.68,169.61,67.16]
[1747354098269,5.8941,169.62,169.61,67.16]
[1747354098466,67.46,169.63,169.56,509.88]
[1747354098668,67.46,169.63,169.57,67.16]
[1747354099168,1.8492,169.62,169.53,67.16]
[1747354099368,69.0092,169.62,169.48,509.32]
[1747354099563,69.0092,169.62,169.49,67.16]
[1747354101164,69.0092,169.62,169.5,5.8982]
[1747354101367,69.0092,169.62,169.49,67.16]
[1747354101768,5.896,169.57,169.49,67.16]
[1747354101964,69.0092,169.62,169.49,67.16]
[1747354102171,67.34,169.61,169.49,67.16]
[1747354102364,5.896,169.57,169.52,5.8975]
[1747354102566,67.34,169.61,169.51,67.34]
[1747354102870,5.8977,169.52,169.48,509.32]
[1747354103058,5.8977,169.52,169.5,67.16]
[1747354103263,69.0092,169.62,169.5,67.16]
[1747354103264,5.8979,169.51,169.5,67.16]
[1747354103570,67.38,169.55,169.5,67.16]
[1747354104271,69.0092,169.62,169.5,134.52]
[1747354104471,67.36,169.61,169.5,134.52]
[1747354104860,5.8952,169.59,169.5,134.52]
[1747354105067,67.32,169.62,169.5,134.52]
[1747354105265,67.3,169.63,169.5,134.52]
[1747354105665,5.8951,169.6,169.55,5.8963]
[1747354105860,67.3,169.63,169.56,67.18]
[1747354106068,5.8959,169.57,169.56,67.18]
[1747354106676,5.8956,169.58,169.56,67.18]
[1747354107073,67.3,169.63,169.56,67.18]
[1747354108075,5.8959,169.57,169.56,67.18]
[1747354109576,5.8967,169.55,169.52,67.18]
[1747354110070,67.12,169.58,169.52,67.18]
[1747354110373,67.12,169.63,169.56,5.8961]
[1747354110567,5.8951,169.6,169.53,2.0196]
[1747354110769,67.1,169.63,169.53,2.0196]
[1747354110968,67.1,169.63,169.52,67.18]
[1747354111175,67.1,169.63,169.52,67.2]
[1747354111772,5.8964,169.56,169.52,67.2]
[1747354112165,72.9958,169.58,169.52,67.2]
[1747354112780,67.1,169.58,169.54,5.8968]
[1747354113172,67.1,169.58,169.52,67.2]
[1747354113373,5.8963,169.56,169.52,67.2]
[1747354113567,67.1,169.58,169.52,67.2]
[1747354113769,5.8966,169.55,169.52,67.2]
[1747354113974,67.1,169.58,169.52,67.2]
[1747354114276,3.7766,169.57,169.48,576.52]
[1747354115577,67.1,169.58,169.48,576.52]
[1747354115973,67.1,169.58,169.51,5.898]
[1747354116278,67.1,169.58,169.48,576.52]
[1747354117079,67.1,169.58,169.55,5.8963]
[1747354117270,67.1,169.58,169.48,576.52]
[1747354117271,1.8408,169.69,169.54,67.2]
[1747354117476,5.8929,169.66,169.55,69.1983]
[1747354117778,1.8408,169.69,169.55,69.1983]
[1747354117779,1.8408,169.69,169.56,3.88]
[1747354117974,5.8933,169.65,169.61,5.8944]
[1747354118180,1.8408,169.69,169.61,73.0944]
[1747354118378,67.06,169.68,169.61,67.2]
[1747354119080,67.06,169.68,169.56,3.88]
[1747354119280,67.06,169.68,169.57,67.2]
[1747354120185,67.06,169.68,169.58,1.8881]
[1747354120371,67.06,169.68,169.59,67.08]
[1747354120570,72.951,169.71,169.59,67.08]
[1747354121470,67.06,169.71,169.59,67.08]
[1747354121778,67.06,169.71,169.66,5.8925]
[1747354121978,67.06,169.71,169.67,67.18]
[1747354122377,5.8911,169.71,169.67,73.0722]
[1747354122877,5.8914,169.7,169.67,67.18]
[1747354123078,1.8852,169.73,169.67,67.18]
[1747354123781,67.0,169.74,169.67,67.18]
[1747354124680,72.8903,169.74,169.69,5.8914]
[1747354125382,5.8909,169.72,169.67,73.0723]
[1747354125888,5.8909,169.72,169.68,5.892]
[1747354126489,5.8909,169.72,169.67,73.0724]
[1747354126896,5.8904,169.73,169.67,67.18]
[1747354127191,66.76,169.76,169.69,5.8916]
[1747354127392,5.89,169.74,169.67,67.18]
[1747354127592,124.0,169.89,169.67,67.18]
[1747354127593,87.53071882,169.85,169.67,67.18]
[1747354127787,66.6,169.84,169.73,5.8902]
[1747354127993,66.58,169.84,169.74,67.18]
[1747354128194,66.58,169.84,169.75,67.16]
[1747354128493,5.8882,169.8,169.75,67.16]
[1747354128685,66.58,169.84,169.75,67.16]
[1747354128885,66.5,169.83,169.75,67.16]
[1747354129396,5.8875,169.82,169.77,5.8888]
[1747354129693,66.5,169.83,169.75,67.16]
[1747354130895,66.5,169.83,169.71,67.14]
[1747354132698,5.8889,169.78,169.73,5.8902]
[1747354132994,67.18,169.85,169.71,133.46]
[1747354133203,66.36,169.84,169.71,133.46]
[1747354133495,5.8881,169.8,169.75,5.8896]
[1747354133992,5.8883,169.79,169.76,67.14]
[1747354134196,66.3,169.82,169.76,67.14]
[1747354134398,66.3,169.82,169.72,67.14]
[1747354134602,5.8895,169.76,169.72,67.14]
[1747354134899,66.3,169.82,169.72,67.14]
[1747354135695,5.89,169.74,169.72,67.14]
[1747354136000,66.38,169.77,169.72,67.14]
[1747354136195,5.8893,169.77,169.72,73.0304]
[1747354136392,133.52,169.8,169.72,67.14]
[1747354137302,66.34,169.83,169.72,67.14]
[1747354137499,5.8876,169.81,169.72,67.14]
[1747354137696,66.34,169.83,169.72,67.14]
[1747354138203,5.8878,169.81,169.76,5.889]
[1747354138396,66.3,169.87,169.77,66.34]
[1747354138596,66.3,169.87,169.78,66.34]
[1747354139201,5.8869,169.83,169.78,66.34]
[1747354139391,66.3,169.87,169.78,66.34]
[1747354139594,5.8873,169.82,169.78,66.34]
[1747354139896,132.62,169.87,169.78,66.34]
[1747354140095,5.8879,169.8,169.78,66.34]
[1747354140301,66.16,169.83,169.78,66.34]
[1747354140602,5.8879,169.8,169.78,66.34]
[1747354140903,66.16,169.83,169.74,66.32]
[1747354142202,5.8874,169.82,169.77,5.8887]
[1747354142397,66.16,169.83,169.75,3.9417]
[1747354143002,5.8877,169.81,169.76,5.8892]
[1747354143203,66.16,169.83,169.75,3.9417]
[1747354143502,66.32,169.87,169.74,66.32]
[1747354143692,66.26,169.86,169.74,66.32]
[1747354144196,66.26,169.86,169.75,66.26]
[1747354144603,5.887,169.83,169.78,5.8885]
[1747354144904,66.32,169.87,169.75,66.26]
[1747354145096,66.22,169.84,169.75,66.26]
[1747354145296,5.7382,169.9,169.81,5.8875]
[1747354145502,66.2,169.89,169.8,66.32]
[1747354146304,66.2,169.89,169.72,3.9417]
[1747354146603,1.08092472,169.88,169.73,66.32]
[1747354146810,5.8899,169.75,169.73,66.32]
[1747354147100,1.08092472,169.88,169.73,66.32]
[1747354147101,66.2,169.77,169.73,66.32]
[1747354147292,66.2,169.78,169.73,66.32]
[1747354148202,5.89,169.74,169.73,66.32]
[1747354148394,66.2,169.78,169.73,66.32]
[1747354149899,5.8897,169.75,169.73,66.32]
[1747354150105,66.2,169.78,169.73,66.32]
[1747354151297,5.89,169.74,169.73,66.32]
[1747354151501,5.89,169.74,169.69,70.304]
[1747354151793,66.2,169.78,169.69,70.304]
[1747354152201,66.2,169.78,169.69,66.32]
[1747354152405,1.9725,169.77,169.65,66.32]
[1747354152605,66.32,169.76,169.63,66.32]
[1747354152801,5.8926,169.67,169.63,66.32]
[1747354152999,66.06,169.68,169.63,66.32]
[1747354154409,71.9523,169.68,169.63,66.32]
[1747354154710,66.06,169.68,169.63,66.32]
[1747354157999,66.06,169.68,169.6,3.849]
[1747354158407,5.8934,169.65,169.6,3.849]
[1747354159011,5.8934,169.65,169.6,9.7438]
[1747354159310,5.8935,169.64,169.6,3.849]
[1747354159506,66.34,169.68,169.53,2.0271]
[1747354159713,65.76,169.67,169.54,66.34]
[1747354160801,65.76,169.67,169.55,5.8965]
[1747354161002,65.76,169.67,169.54,66.34]
[1747354161507,65.76,169.67,169.55,5.8963]
[1747354161917,65.76,169.67,169.54,72.2369]
[1747354162216,65.76,169.67,169.54,66.34]
[1747354163314,65.76,169.67,169.54,72.2368]
[1747354164114,65.74,169.66,169.54,66.34]
[1747354164712,5.8958,169.58,169.54,66.34]
[1747354164915,65.78,169.6,169.54,66.34]
[1747354166616,5.8958,169.58,169.54,66.34]
[1747354166807,65.78,169.6,169.54,66.34]
[1747354167008,66.38,169.59,169.46,3.7962]
[1747354167207,5.8976,169.52,169.47,72.2793]
[1747354167414,5.8976,169.52,169.47,66.38]
[1747354167615,65.68,169.53,169.47,66.38]
[1747354168618,65.68,169.53,169.43,65.68]
[1747354169618,5.9002,169.45,169.43,65.68]
[1747354169818,5.9002,169.45,169.39,65.68]
[1747354170217,65.6,169.46,169.39,65.68]
[1747354170517,65.54,169.5,169.4,65.54]
[1747354170718,65.54,169.5,169.4,71.4918]
[1747354171417,65.52,169.51,169.4,71.4918]
[1747354172216,65.52,169.51,169.48,5.899]
[1747354172718,67.6585,169.58,169.47,65.68]
[1747354172907,65.48,169.57,169.48,2.0288]
[1747354173715,5.8969,169.54,169.48,2.0288]
[1747354173912,65.48,169.57,169.48,2.0288]
[1747354174114,65.48,169.57,169.47,65.68]
[1747354174820,5.8976,169.53,169.48,5.8988]
[1747354175011,5.8976,169.53,169.47,65.68]
[1747354175319,5.8969,169.54,169.47,65.68]
[1747354175616,65.48,169.57,169.47,65.68]
[1747354175814,5.8963,169.56,169.51,5.8977]
[1747354176116,5.8963,169.56,169.51,65.7]
[1747354176308,65.4,169.57,169.51,65.7]
[1747354176715,5.8967,169.55,169.51,65.7]
[1747354176915,65.34,169.57,169.51,65.7]
[1747354177110,65.36,169.61,169.51,65.7]
[1747354177317,5.8952,169.6,169.52,1.9349]
[1747354177519,5.8952,169.6,169.52,67.3149]
[1747354177714,65.36,169.61,169.52,67.3149]
[1747354177915,5.8955,169.59,169.52,67.3149]
[1747354178318,5.8955,169.59,169.55,5.8965]
[1747354178518,5.8949,169.6,169.55,65.7]
[1747354178718,65.38,169.61,169.55,65.7]
[1747354178919,65.38,169.61,169.56,5.8961]
[1747354179119,5.895,169.6,169.56,5.8961]
[1747354179612,5.8952,169.59,169.55,71.5965]
[1747354179819,65.7,169.65,169.55,71.5965]
[1747354179820,65.32,169.62,169.55,65.7]
[1747354180221,5.8954,169.59,169.55,71.5965]
[1747354180521,65.32,169.62,169.55,65.7]
[1747354180719,5.8939,169.63,169.59,5.8952]
[1747354180921,65.28,169.64,169.55,65.7]
[1747354181722,5.8956,169.58,169.55,65.7]
[1747354181923,65.28,169.64,169.55,65.7]
[1747354183430,5.8954,169.59,169.55,65.7]
[1747354184927,5.8957,169.58,169.55,65.7]
[1747354185629,5.8953,169.59,169.55,65.7]
[1747354186034,65.2,169.6,169.55,65.7]
[1747354186427,65.2,169.6,169.51,65.7]
[1747354186726,1.9394,169.59,169.49,1.9078]
[1747354186928,5.7445,169.59,169.5,65.7]
[1747354187430,5.8975,169.53,169.5,65.7]
[1747354187825,64.96,169.55,169.5,65.7]
[1747354188332,70.8569,169.55,169.5,71.5983]
[1747354188633,64.9,169.57,169.5,65.7]
[1747354189020,70.7962,169.57,169.51,5.8979]
[1747354189226,65.7,169.61,169.5,65.7]
[1747354189424,5.8956,169.58,169.52,5.8973]
[1747354189636,5.8956,169.58,169.5,130.6]
[1747354189832,64.88,169.6,169.5,130.6]
[1747354190129,5.8959,169.57,169.5,130.6]
[1747354190632,64.88,169.6,169.5,130.6]
[1747354191435,68.7422,169.6,169.5,65.7]
[1747354191635,70.7395,169.6,169.5,65.7]
[1747354192038,5.8975,169.53,169.5,65.7]
[1747354192531,5.8977,169.52,169.5,65.7]
[1747354192731,64.8,169.55,169.5,65.7]
[1747354193337,5.8976,169.52,169.5,65.7]
[1747354193537,64.8,169.55,169.5,65.7]
[1747354194641,64.8,169.55,169.46,65.7]